fUSD/lending_fUSD_20250620
["ID","MTS","AMOUNT","RATE_DAILY","PERIOD"]
[366700997,1750415513702,-490.0,0.00026301,4]
[366700998,1750415513712,-686.43,0.00026301,4]
[366700999,1750415513724,-1554.68,0.00026301,4]
[366701000,1750415513733,-490.0,0.00026301,4]
[366701001,1750415513743,-490.0,0.00026301,4]
[366701002,1750415513753,-490.0,0.00026301,4]
[366701003,1750415513763,-490.0,0.00026301,4]
[366701004,1750415513772,-490.0,0.00026301,4]
[366701005,1750415513782,-490.0,0.00026301,4]
[366701006,1750415513792,-620.11,0.00026301,4]
[366701007,1750415513802,-490.0,0.00026301,4]
[366701008,1750415513812,-490.0,0.00026301,4]
[366701009,1750415513821,-1692.44,0.00026301,4]
[366701010,1750415513831,-490.0,0.00026301,4]
[366701011,1750415513840,-757.27,0.00026301,4]
[366701012,1750415513850,-591.54,0.00026301,4]
[366701013,1750415513859,-490.0,0.00026301,4]
[366701014,1750415513869,-490.0,0.00026301,4]
[366701015,1750415513879,-1478.21,0.00026301,4]
[366701016,1750415513890,-490.0,0.00026301,4]
[366701017,1750415513899,-1664.77,0.00026301,4]
[366701018,1750415513910,-490.0,0.00026301,4]
[366701019,1750415513920,-513.53,0.00026301,4]
[366701020,1750415513930,-1643.07,0.00026301,4]
[366701021,1750415513941,-2421.62,0.00026301,4]
[366701022,1750415513951,-490.0,0.00026301,4]
[366701023,1750415513962,-490.0,0.00026301,4]
[366701024,1750415513972,-167.03026016,0.00026301,4]
[366701025,1750415513983,-1002.75,0.00026301,4]
[366701026,1750415513994,-1171.85,0.00026301,4]
[366701027,1750415514007,-490.0,0.00026301,4]
[366701028,1750415514017,-490.0,0.00026301,4]
[366701029,1750415514026,-490.0,0.00026301,4]
[366701030,1750415514038,-490.0,0.00026301,4]
[366701031,1750415514048,-490.0,0.00026301,4]
[366701032,1750415514058,-439.70411674,0.00026301,4]
[366701033,1750415514068,-490.0,0.00026301,4]
[366701034,1750415514078,-513.94,0.00026301,4]
[366701035,1750415514087,-490.0,0.00026301,4]
[366701036,1750415514097,-1052.23,0.00026301,4]
[366701037,1750415514109,-1203.58,0.00026301,4]
[366701038,1750415514119,-1052.12,0.00026301,4]
[366701039,1750415514129,-490.0,0.00026301,4]
[366701040,1750415514139,-490.0,0.00026301,4]
[366701041,1750415514149,-1116.54,0.00026301,4]
[366701042,1750415514160,-490.0,0.00026301,4]
[366701043,1750415514170,-490.0,0.00026301,4]
[366701044,1750415514181,-593.05,0.00026301,4]
[366701045,1750415514191,-490.0,0.00026301,4]
[366701046,1750415514201,-713.86,0.00026301,4]
[366701047,1750415514212,-576.72,0.00026301,4]
[366701048,1750415514223,-1207.78,0.00026301,4]
[366701049,1750415514232,-490.0,0.00026301,4]
[366701050,1750415514244,-490.0,0.00026301,4]
[366701051,1750415514254,-885.97,0.00026301,4]
[366701052,1750415514264,-1286.94,0.00026301,4]
[366701053,1750415514274,-774.59,0.00026301,4]
[366701054,1750415514285,-663.64,0.00026301,4]
[366701055,1750415514295,-490.0,0.00026301,4]
[366701056,1750415514305,-490.0,0.00026301,4]
[366701057,1750415514316,-490.0,0.00026301,4]
[366701058,1750415514327,-689.38,0.00026301,4]
[366701059,1750415514337,-556.07,0.00026301,4]
[366701060,1750415514347,-346.66306002,0.00026301,4]
[366701061,1750415514358,-490.0,0.00026301,4]
[366701062,1750415514367,-490.0,0.00026301,4]
[366701063,1750415514378,-929.62,0.00026301,4]
[366701064,1750415514388,-852.86,0.00026301,4]
[366701065,1750415514398,-540.11,0.00026301,4]
[366701066,1750415514409,-490.0,0.00026301,4]
[366701067,1750415514419,-490.0,0.00026301,4]
[366701068,1750415514432,-490.0,0.00026301,4]
[366701069,1750415514442,-490.0,0.00026301,4]
[366701070,1750415514452,-549.5,0.00026301,4]
[366701071,1750415514462,-490.0,0.00026301,4]
[366701072,1750415514472,-719.33,0.00026301,4]
[366701073,1750415514482,-490.0,0.00026301,4]
[366701074,1750415514491,-490.0,0.00026301,4]
[366701075,1750415514502,-490.0,0.00026301,4]
[366701076,1750415514511,-992.43,0.00026301,4]
[366701077,1750415514522,-1178.9,0.00026301,4]
[366701078,1750415514531,-490.0,0.00026301,4]
[366701079,1750415514541,-2120.13,0.00026301,4]
[366701080,1750415514551,-490.0,0.00026301,4]
[366701081,1750415514561,-490.0,0.00026301,4]
[366701082,1750415514571,-797.21,0.00026301,4]
[366701083,1750415514581,-490.0,0.00026301,4]
[366701084,1750415514591,-2831.45,0.00026301,4]
[366701085,1750415514600,-1657.46,0.00026301,4]
[366701086,1750415514611,-204.45862522,0.00026301,4]
[366701087,1750415514620,-1176.63,0.00026301,4]
[366701088,1750415514630,-835.13,0.00026301,4]
[366701089,1750415514640,-640.77,0.00026301,4]
[366701090,1750415514650,-490.0,0.00026301,4]
[366701091,1750415514660,-955.18,0.00026301,4]
[366701092,1750415514670,-759.69,0.00026301,4]
[366701093,1750415514680,-495.19,0.00026301,4]
[366701094,1750415514690,-1620.75,0.00026301,4]
[366701095,1750415514700,-2608.35,0.00026301,4]
[366701096,1750415514710,-490.0,0.00026301,4]
[366701097,1750415514720,-1487.07,0.00026301,4]
[366701098,1750415514731,-490.0,0.00026301,4]
[366701099,1750415514741,-620.7,0.00026301,4]
[366701100,1750415514751,-2196.02,0.00026301,4]
[366701101,1750415514761,-490.0,0.00026301,4]
[366701102,1750415514772,-490.0,0.00026301,4]
[366701103,1750415514782,-2048.55,0.00026301,4]
[366701104,1750415514793,-490.0,0.00026301,4]
[366701105,1750415514803,-1452.89,0.00026301,4]
[366701106,1750415514813,-676.1,0.00026301,4]
[366701107,1750415514823,-490.0,0.00026301,4]
[366701108,1750415514833,-490.0,0.00026301,4]
[366701109,1750415514843,-3078.01,0.00026301,4]
[366701110,1750415514852,-729.0,0.00026301,4]
[366701111,1750415514862,-490.0,0.00026301,4]
[366701112,1750415514872,-646.89,0.00026301,4]
[366701113,1750415514882,-490.0,0.00026301,4]
[366701114,1750415514894,-692.86,0.00026301,4]
[366701115,1750415514905,-1111.1,0.00026301,4]
[366701116,1750415514916,-726.03,0.00026301,4]
[366701117,1750415514928,-490.0,0.00026301,4]
[366701118,1750415514939,-896.01,0.00026301,4]
[366701119,1750415514949,-522.54,0.00026301,4]
[366701120,1750415514962,-490.0,0.00026301,4]
[366701121,1750415514972,-817.65,0.00026301,4]
[366701122,1750415514982,-490.0,0.00026301,4]
[366701123,1750415514993,-1212.05,0.00026301,4]
[366701124,1750415515004,-490.0,0.00026301,4]
[366701125,1750415515015,-490.0,0.00026301,4]
[366701126,1750415515027,-1510.44,0.00026301,4]
[366701127,1750415515038,-490.0,0.00026301,4]
[366701128,1750415515050,-563.12,0.00026301,4]
[366701129,1750415515061,-17404.6,0.00026301,4]
[366701130,1750415515071,-490.0,0.00026301,4]
[366701131,1750415515081,-516.42,0.00026301,4]
[366701132,1750415515091,-1966.77,0.00026301,4]
[366701133,1750415515101,-499.64,0.00026301,4]
[366701134,1750415515115,-682.61,0.00026301,4]
[366701135,1750415515126,-496.54,0.00026301,4]
[366701136,1750415515137,-1292.76,0.00026301,4]
[366701137,1750415515146,-490.0,0.00026301,4]
[366701138,1750415515156,-532.96,0.00026301,4]
[366701139,1750415515167,-490.0,0.00026301,4]
[366701140,1750415515178,-490.0,0.00026301,4]
[366701141,1750415515190,-490.0,0.00026301,4]
[366701142,1750415515200,-3089.65,0.00026301,4]
[366701143,1750415515211,-490.0,0.00026301,4]
[366701144,1750415515222,-490.0,0.00026301,4]
[366701145,1750415515233,-1110.49,0.00026301,4]
[366701146,1750415515243,-875.85,0.00026301,4]
[366701147,1750415515254,-490.0,0.00026301,4]
[366701148,1750415515264,-490.0,0.00026301,4]
[366701149,1750415515274,-808.72,0.00026301,4]
[366701150,1750415515285,-490.0,0.00026301,4]
[366701151,1750415515295,-548.1,0.00026301,4]
[366701152,1750415515305,-490.0,0.00026301,4]
[366701153,1750415515315,-1116.64,0.00026301,4]
[366701154,1750415515326,-490.0,0.00026301,4]
[366701155,1750415515336,-741.55,0.00026301,4]
[366701156,1750415515346,-490.0,0.00026301,4]
[366701157,1750415515357,-490.0,0.00026301,4]
[366701158,1750415515367,-900.32,0.00026301,4]
[366701159,1750415515377,-3388.66,0.00026301,4]
[366701160,1750415515387,-490.0,0.00026301,4]
[366701161,1750415515398,-490.0,0.00026301,4]
[366701162,1750415515408,-490.0,0.00026301,4]
[366701163,1750415515419,-1386.85,0.00026301,4]
[366701164,1750415515429,-2512.9,0.00026301,4]
[366701165,1750415515439,-490.0,0.00026301,4]
[366701166,1750415515450,-490.0,0.00026301,4]
[366701167,1750415515460,-613.06,0.00026301,4]
[366701168,1750415515470,-7527.62,0.00026301,4]
[366701169,1750415515481,-7882.79,0.00026301,4]
[366701170,1750415515491,-1533.1,0.00026301,4]
[366701171,1750415515501,-490.0,0.00026301,4]
[366701172,1750415515512,-741.74,0.00026301,4]
[366701173,1750415515522,-557.61,0.00026301,4]
[366701174,1750415515533,-2444.05,0.00026301,4]
[366701175,1750415515543,-1074.56,0.00026301,4]
[366701176,1750415515554,-490.0,0.00026301,4]
[366701177,1750415515565,-716.85,0.00026301,4]
[366701178,1750415515575,-3776.02,0.00026301,4]
[366701179,1750415515585,-518.33463701,0.00026301,4]
[366701180,1750415515596,-490.0,0.00026301,4]
[366701181,1750415515606,-759.29,0.00026301,4]
[366701182,1750415515616,-5317.42,0.00026301,4]
[366701183,1750415515626,-490.0,0.00026301,4]
[366701184,1750415515637,-508.46,0.00026301,4]
[366701185,1750415515648,-490.0,0.00026301,4]
[366701186,1750415515659,-490.0,0.00026301,4]
[366701187,1750415515669,-490.0,0.00026301,4]
[366701188,1750415515680,-1702.18,0.00026301,4]
[366701189,1750415515690,-1502.12,0.00026301,4]
[366701190,1750415515701,-490.0,0.00026301,4]
[366701191,1750415515711,-9880.35,0.00026301,4]
[366701192,1750415515723,-670.44,0.00026301,4]
[366701193,1750415515734,-2012.16,0.00026301,4]
[366701194,1750415515744,-1936.5,0.00026301,4]
[366701195,1750415515754,-6404.69,0.00026301,4]
[366701196,1750415515764,-490.0,0.00026301,4]
[366701197,1750415515775,-490.0,0.00026301,4]
[366701198,1750415515785,-490.0,0.00026301,4]
[366701199,1750415515795,-490.0,0.00026301,4]
[366701200,1750415515806,-2380.6,0.00026301,4]
[366701201,1750415515817,-1141.27,0.00026301,4]
[366701202,1750415515829,-510.99,0.00026301,4]
[366701203,1750415516100,-691.59,0.00026301,4]
[366701204,1750415516110,-490.0,0.00026301,4]
[366701205,1750415516120,-598.6030185,0.00026301,4]
[366701206,1750415516132,-1844.2,0.00026301,4]
[366701207,1750415516142,-490.0,0.00026301,4]
[366701208,1750415516152,-490.0,0.00026301,4]
[366701209,1750415516162,-2450.17,0.00026301,4]
[366701210,1750415516173,-490.0,0.00026301,4]
[366701211,1750415516183,-622.58,0.00026301,4]
[366701212,1750415516193,-490.0,0.00026301,4]
[366701213,1750415516203,-490.0,0.00026301,4]
[366701214,1750415516213,-1419.42,0.00026301,4]
[366701215,1750415516224,-17540.73,0.00026301,4]
[366701216,1750415516233,-1227.01,0.00026301,4]
[366701217,1750415516244,-490.0,0.00026301,4]
[366701218,1750415516253,-490.0,0.00026301,4]
[366701219,1750415516263,-490.0,0.00026301,4]
[366701220,1750415516272,-490.0,0.00026301,4]
[366701221,1750415516282,-490.0,0.00026301,4]
[366701222,1750415516292,-5948.54,0.00026301,4]
[366701223,1750415516301,-957.68,0.00026301,4]
[366701224,1750415516311,-503.54666693,0.00026301,4]
[366701225,1750415516321,-490.0,0.00026301,4]
[366701226,1750415516330,-490.0,0.00026301,4]
[366701227,1750415516339,-490.0,0.00026301,4]
[366701228,1750415516349,-5372.22,0.00026301,4]
[366701229,1750415516358,-1499.27,0.00026301,4]
[366701230,1750415516370,-490.0,0.00026301,4]
[366701231,1750415516381,-490.0,0.00026301,4]
[366701232,1750415516390,-1525.88,0.00026301,4]
[366701233,1750415516400,-1594.4,0.00026301,4]
[366701234,1750415516409,-490.0,0.00026301,4]
[366701235,1750415516421,-490.0,0.00026301,4]
[366701236,1750415516431,-574.02,0.00026301,4]
[366701237,1750415516441,-18649.49,0.00026301,4]
[366701238,1750415516451,-490.0,0.00026301,4]
[366701239,1750415516464,-11431.71,0.00026301,4]
[366701240,1750415516474,-662.4,0.00026301,4]
[366701241,1750415516483,-490.0,0.00026301,4]
[366701242,1750415516493,-490.0,0.00026301,4]
[366701243,1750415516506,-2766.75,0.00026301,4]
[366701244,1750415516518,-1747.3,0.00026301,4]
[366701245,1750415516528,-490.0,0.00026301,4]
[366701246,1750415516538,-1639.8,0.00026301,4]
[366701247,1750415516548,-490.0,0.00026301,4]
[366701248,1750415516558,-521.31,0.00026301,4]
[366701249,1750415516568,-490.0,0.00026301,4]
[366701250,1750415516579,-641.47,0.00026301,4]
[366701251,1750415516589,-1452.7,0.00026301,4]
[366701252,1750415516599,-490.0,0.00026301,4]
[366701253,1750415516608,-490.0,0.00026301,4]
[366701254,1750415516619,-766.28,0.00026301,4]
[366701255,1750415516629,-1528.81,0.00026301,4]
[366701256,1750415516639,-2442.89,0.00026301,4]
[366701257,1750415516649,-490.0,0.00026301,4]
[366701258,1750415516659,-490.0,0.00026301,4]
[366701259,1750415516669,-490.0,0.00026301,4]
[366701260,1750415516678,-974.85,0.00026301,4]
[366701261,1750415516688,-525.8,0.00026301,4]
[366701262,1750415516698,-655.26,0.00026301,4]
[366701263,1750415516707,-490.0,0.00026301,4]
[366701264,1750415516718,-490.0,0.00026301,4]
[366701265,1750415516728,-490.0,0.00026301,4]
[366701266,1750415516738,-6155.02,0.00026301,4]
[366701267,1750415516747,-490.0,0.00026301,4]
[366701268,1750415516757,-1546.64,0.00026301,4]
[366701269,1750415516767,-490.0,0.00026301,4]
[366701270,1750415516776,-952.09,0.00026301,4]
[366701271,1750415516786,-2556.54,0.00026301,4]
[366701272,1750415516795,-490.0,0.00026301,4]
[366701273,1750415516805,-490.0,0.00026301,4]
[366701274,1750415516814,-1078.67,0.00026301,4]
[366701275,1750415516824,-1698.38,0.00026301,4]
[366701276,1750415516834,-7770.54,0.00026301,4]
[366701277,1750415516844,-490.0,0.00026301,4]
[366701278,1750415516855,-490.0,0.00026301,4]
[366701279,1750415516864,-490.0,0.00026301,4]
[366701280,1750415516875,-713.18,0.00026301,4]
[366701281,1750415516885,-490.0,0.00026301,4]
[366701282,1750415516895,-490.0,0.00026301,4]
[366701283,1750415516906,-565.57,0.00026301,4]
[366701284,1750415516916,-1078.51,0.00026301,4]
[366701285,1750415516926,-490.0,0.00026301,4]
[366701286,1750415516936,-490.0,0.00026301,4]
[366701287,1750415516946,-490.0,0.00026301,4]
[366701288,1750415516956,-511.43,0.00026301,4]
[366701289,1750415516965,-325.210147,0.00026308,7]
[366701290,1750415516975,-325.210147,0.00026308,7]
[366701291,1750415516985,-151.0,0.00026309,7]
[366701292,1750415516995,-229.0,0.0002631,2]
[366701293,1750415517005,-155.075393,0.00026311,7]
[366701294,1750415517014,-155.075393,0.00026311,7]
[366701295,1750415517025,-151.0,0.00026311,7]
[366701296,1750415517034,-151.0,0.00026311,7]
[366701297,1750415517045,-151.0,0.00026311,7]
[366701298,1750415517055,-818.371445,0.00026311,7]
[366701299,1750415517064,-247.897813,0.00026311,7]
[366701300,1750415517074,-247.897813,0.00026311,7]
[366701301,1750415517084,-563.488081,0.00026311,7]
[366701302,1750415517094,-563.488081,0.00026311,7]
[366701303,1750415517109,-340.54121,0.00026311,7]
[366701304,1750415517119,-340.54121,0.00026311,7]
[366701305,1750415517130,-174.163115,0.00026311,7]
[366701306,1750415517140,-174.163115,0.00026311,7]
[366701307,1750415517151,-312.569381,0.00026311,7]
[366701308,1750415517162,-152.41121,0.00026311,7]
[366701309,1750415517171,-312.569381,0.00026311,7]
[366701310,1750415517182,-152.41121,0.00026311,7]
[366701311,1750415517192,-262.333288,0.00026311,7]
[366701312,1750415517203,-262.333288,0.00026311,7]
[366701313,1750415517213,-208.215125,0.00026311,7]
[366701314,1750415517223,-807.151368,0.00026311,7]
[366701315,1750415517234,-807.151368,0.00026311,7]
[366701316,1750415517245,-414.404727,0.00026311,7]
[366701317,1750415517255,-490.0,0.00026311,4]
[366701318,1750415517266,-414.404727,0.00026311,7]
[366701319,1750415517277,-490.0,0.00026311,4]
[366701320,1750415517286,-420.090882,0.00026311,7]
[366701321,1750415517297,-555.97667447,0.00026311,4]
[366701322,1750415517307,-420.090882,0.00026311,7]
[366701323,1750415517317,-278.30803412,0.00026311,4]
[366701324,1750415517327,-490.0,0.00026311,4]
[366701325,1750415517337,-490.0,0.00026311,4]
[366701326,1750415517346,-312.753519,0.00026311,7]
[366701327,1750415517356,-312.753519,0.00026311,7]
[366701328,1750415517367,-490.0,0.00026311,4]
[366701329,1750415517379,-490.0,0.00026311,4]
[366701330,1750415517389,-225.089144,0.00026311,7]
[366701331,1750415517401,-225.089144,0.00026311,7]
[366701332,1750415517411,-490.0,0.00026311,4]
[366701333,1750415517422,-151.0,0.00026311,7]
[366701334,1750415517433,-248.936062,0.00026311,7]
[366701335,1750415517444,-490.0,0.00026311,4]
[366701336,1750415517454,-248.936062,0.00026311,7]
[366701337,1750415517464,-490.0,0.00026311,4]
[366701338,1750415517474,-490.0,0.00026311,4]
[366701339,1750415517484,-490.0,0.00026311,4]
[366701340,1750415517494,-490.0,0.00026311,4]
[366701341,1750415517504,-490.0,0.00026311,4]
[366701342,1750415517514,-490.0,0.00026311,4]
[366701343,1750415517523,-2674.385682,0.00026311,7]
[366701344,1750415517533,-490.0,0.00026311,4]
[366701345,1750415517543,-2674.385682,0.00026311,7]
[366701346,1750415517552,-490.0,0.00026311,4]
[366701347,1750415517562,-398.851022,0.00026311,7]
[366701348,1750415517572,-398.851018,0.00026311,7]
[366701349,1750415517582,-490.0,0.00026311,4]
[366701350,1750415517591,-263.82451165,0.00026311,4]
[366701351,1750415517600,-490.0,0.00026311,4]
[366701352,1750415517610,-490.0,0.00026311,4]
[366701353,1750415517620,-490.0,0.00026311,4]
[366701354,1750415517630,-490.0,0.00026311,4]
[366701355,1750415517640,-490.0,0.00026311,4]
[366701356,1750415517649,-490.0,0.00026311,4]
[366701357,1750415517659,-490.0,0.00026311,4]
[366701358,1750415517669,-151.0,0.00026311,7]
[366701359,1750415517678,-490.0,0.00026311,4]
[366701360,1750415517688,-208.470969,0.00026311,7]
[366701361,1750415517698,-490.0,0.00026311,4]
[366701362,1750415517708,-490.0,0.00026311,4]
[366701363,1750415517717,-303.833978,0.00026311,7]
[366701364,1750415517727,-303.833978,0.00026311,7]
[366701365,1750415517737,-201.91012232,0.00026311,4]
[366701366,1750415517747,-151.0,0.00026311,7]
[366701367,1750415517757,-490.0,0.00026311,4]
[366701368,1750415517766,-709.67,0.00026311,4]
[366701369,1750415517776,-490.0,0.00026311,4]
[366701370,1750415517786,-490.0,0.00026311,4]
[366701371,1750415517796,-490.0,0.00026311,4]
[366701372,1750415517806,-490.0,0.00026311,4]
[366701373,1750415517816,-151.0,0.00026311,7]
[366701374,1750415517827,-716.73,0.00026311,4]
[366701375,1750415517836,-490.0,0.00026311,4]
[366701376,1750415517847,-490.0,0.00026311,4]
[366701377,1750415517856,-490.0,0.00026311,4]
[366701378,1750415517866,-879.88,0.00026311,4]
[366701379,1750415517876,-490.0,0.00026311,4]
[366701380,1750415517885,-491.2695305,0.00026311,4]
[366701381,1750415517910,-490.0,0.00026311,4]
[366701382,1750415517930,-284.25173959,0.00026311,4]
[366701383,1750415517958,-490.0,0.00026311,4]
[366701384,1750415517981,-490.0,0.00026311,4]
[366701385,1750415518000,-207.27364765,0.00026311,4]
[366701386,1750415518024,-490.0,0.00026311,4]
[366701387,1750415518049,-490.0,0.00026311,4]
[366701388,1750415518072,-490.0,0.00026311,4]
[366701389,1750415518095,-490.0,0.00026311,4]
[366701390,1750415518120,-490.0,0.00026311,4]
[366701391,1750415518140,-490.0,0.00026311,4]
[366701392,1750415518155,-490.0,0.00026311,4]
[366701393,1750415518177,-490.0,0.00026311,4]
[366701394,1750415518193,-490.0,0.00026311,4]
[366701395,1750415518211,-490.0,0.00026311,4]
[366701396,1750415518230,-1218.9,0.00026311,4]
[366701397,1750415518247,-901.28,0.00026311,4]
[366701398,1750415518264,-507.19,0.00026311,4]
[366701399,1750415518282,-490.0,0.00026311,4]
[366701400,1750415518300,-490.0,0.00026311,4]
[366701401,1750415518321,-490.0,0.00026311,4]
[366701402,1750415518340,-584.6,0.00026311,4]
[366701403,1750415518357,-490.0,0.00026311,4]
[366701404,1750415518374,-490.0,0.00026311,4]
[366701405,1750415518393,-490.0,0.00026311,4]
[366701406,1750415518411,-490.0,0.00026311,4]
[366701407,1750415518428,-490.0,0.00026311,4]
[366701408,1750415518445,-490.0,0.00026311,4]
[366701409,1750415518462,-490.0,0.00026311,4]
[366701410,1750415518480,-490.0,0.00026311,4]
[366701411,1750415518497,-490.0,0.00026311,4]
[366701412,1750415518515,-490.0,0.00026311,4]
[366701413,1750415518533,-490.0,0.00026311,4]
[366701414,1750415518550,-490.0,0.00026311,4]
[366701415,1750415518568,-490.0,0.00026311,4]
[366701416,1750415518585,-624.83,0.00026311,4]
[366701417,1750415518603,-490.0,0.00026311,4]
[366701418,1750415518621,-490.0,0.00026311,4]
[366701419,1750415518639,-490.0,0.00026311,4]
[366701420,1750415518656,-947.23,0.00026311,4]
[366701421,1750415518673,-497.34,0.00026311,4]
[366701422,1750415518690,-1160.0,0.00026311,4]
[366701423,1750415518708,-682.25,0.00026311,4]
[366701424,1750415518725,-676.69,0.00026311,4]
[366701425,1750415518743,-490.0,0.00026311,4]
[366701426,1750415518761,-798.57,0.00026311,4]
[366701427,1750415518778,-490.0,0.00026311,4]
[366701428,1750415518795,-490.0,0.00026311,4]
[366701429,1750415518812,-490.0,0.00026311,4]
[366701430,1750415518829,-490.0,0.00026311,4]
[366701431,1750415518845,-490.0,0.00026311,4]
[366701432,1750415518861,-490.0,0.00026311,4]
[366701433,1750415518879,-490.0,0.00026311,4]
[366701434,1750415518896,-490.0,0.00026311,4]
[366701435,1750415518914,-994.26,0.00026311,4]
[366701436,1750415518932,-490.0,0.00026311,4]
[366701437,1750415518949,-490.0,0.00026311,4]
[366701438,1750415518966,-504.86,0.00026311,4]
[366701439,1750415518983,-276.06671118,0.00026311,4]
[366701440,1750415519001,-1262.16,0.00026311,4]
[366701441,1750415519017,-490.0,0.00026311,4]
[366701442,1750415519034,-248.82706517,0.00026311,4]
[366701443,1750415519052,-526.89,0.00026311,4]
[366701444,1750415519068,-490.0,0.00026311,4]
[366701445,1750415519086,-490.0,0.00026311,4]
[366701446,1750415519103,-562.08,0.00026311,4]
[366701447,1750415519123,-490.0,0.00026311,4]
[366701448,1750415519139,-545.75,0.00026311,4]
[366701449,1750415519156,-1061.69,0.00026311,4]
[366701450,1750415519173,-490.0,0.00026311,4]
[366701451,1750415519194,-809.96,0.00026311,4]
[366701452,1750415519211,-631.0,0.00026311,4]
[366701453,1750415519228,-1378.13,0.00026311,4]
[366701454,1750415519245,-490.0,0.00026311,4]
[366701455,1750415519261,-490.0,0.00026311,4]
[366701456,1750415519279,-490.0,0.00026311,4]
[366701457,1750415519296,-490.0,0.00026311,4]
[366701458,1750415519312,-490.0,0.00026311,4]
[366701459,1750415519331,-559.26,0.00026311,4]
[366701460,1750415519351,-490.0,0.00026311,4]
[366701461,1750415519368,-614.59116645,0.00026311,4]
[366701462,1750415519386,-707.03,0.00026311,4]
[366701463,1750415519406,-155.7760445,0.00026311,4]
[366701464,1750415519424,-490.0,0.00026311,4]
[366701465,1750415519441,-2021.51,0.00026311,4]
[366701466,1750415519457,-547.36,0.00026311,4]
[366701467,1750415519474,-1831.85,0.00026311,4]
[366701468,1750415519491,-606.95,0.00026311,4]
[366701469,1750415519508,-490.0,0.00026311,4]
[366701470,1750415519525,-1476.65,0.00026311,4]
[366701471,1750415519552,-490.0,0.00026311,4]
[366701472,1750415519571,-490.0,0.00026311,4]
[366701473,1750415519590,-490.0,0.00026311,4]
[366701474,1750415519607,-3374.102372,0.00026311,7]
[366701475,1750415519625,-490.0,0.00026311,4]
[366701476,1750415519642,-490.0,0.00026311,4]
[366701477,1750415519660,-490.0,0.00026311,4]
[366701478,1750415519678,-490.0,0.00026311,4]
[366701479,1750415519697,-3374.102372,0.00026311,7]
[366701480,1750415519715,-600.95,0.00026311,4]
[366701481,1750415519733,-1005.12,0.00026311,4]
[366701482,1750415519751,-1516.56,0.00026311,4]
[366701483,1750415519769,-490.0,0.00026311,4]
[366701484,1750415519785,-490.0,0.00026311,4]
[366701485,1750415519803,-490.0,0.00026311,4]
[366701486,1750415519820,-490.0,0.00026311,4]
[366701487,1750415519839,-302.3,0.00026311,4]
[366701488,1750415519857,-610.25,0.00026311,4]
[366701489,1750415519874,-1853.92,0.00026311,4]
[366701490,1750415519892,-490.0,0.00026311,4]
[366701491,1750415519910,-490.0,0.00026311,4]
[366701492,1750415519928,-1207.48,0.00026311,4]
[366701493,1750415519947,-970.42,0.00026311,4]
[366701494,1750415519965,-490.0,0.00026311,4]
[366701495,1750415519983,-1085.47,0.00026311,4]
[366701496,1750415520003,-555.86,0.00026311,4]